Cogmind - Beta 15 @@@ ROGUE MODE // 2025.10.12 @ 09:38:26 Player: lepire Result: Destroyed by S-43 Plague with Heavy Machine Gun Performance ------------- Evolutions (9) 4500 Regions Visited (16) 3200 Robots Destroyed (26) 130 Value Destroyed (793) 793 Prototype IDs (13) 260 Alien Tech Used (0) 0 Bonus (2300) 2300 TOTAL SCORE: 11183 Bonus ------- Entered DSFs 500 Registered with UFD 300 Met Optimus in HQ 500 Met Warlord at Base 500 MAIN.C Attacked Warlord 500 Cogmind --------- Core Integrity 0/1600 Matter 154/300 Energy 98/100 System Corruption 11% Temperature Cool (0) Movement Core (50) Location -1/Access Parts ------- > --- POWER (2) -------- (None) > --- PROPULSION (6) --- (None) > --- UTILITY (13) ----- Advanced Signal Interpreter Advanced Target Analyzer Graphene Brace Hacking Suite > --- WEAPON (4) ------- (None) > --- INVENTORY (5) ---- Cloaking Device Improved Point Defense System Power Sword Enhanced Force Lance Peak State ------------ > --- POWER ------------ Light Quantum Reactor > --- PROPULSION ------- Xenon Bombardment Thruster Xenon Bombardment Thruster Nuclear Pulse Array Cooled Impulse Thruster > --- UTILITY ---------- Advanced Visual Processing Unit Advanced Sensor Array Advanced Signal Interpreter Improved Melee Analysis Suite Advanced Melee Analysis Suite Advanced Target Analyzer Core Analyzer Core Analyzer Microactuators Improved Reaction Control System Graphene Brace Hacking Suite Improved Hacking Suite > --- WEAPON ----------- Power Sword Power Sword > --- INVENTORY -------- Cloaking Device Improved Point Defense System Enhanced Nova Cannon Smartbomb Launcher [Rating: 112] Favorites ----------- Power Light Deuterium Engine Engine Light Deuterium Engine Power Core Improved Fusion Compressor Reactor Light Quantum Reactor Propulsion Nuclear Pulse Thruster Treads Light Treads Leg Aluminum Leg Wheel Wheel Hover Unit Antigrav Array Flight Unit Nuclear Pulse Thruster Utility Improved Hacking Suite Device Experimental Terrain Scanner Storage Small Storage Unit Processor Advanced Melee Analysis Suite Hackware Improved Hacking Suite Protection Improved Propulsion Shielding Weapon Makeshift Hammer Energy Gun EM Pulse Gun Energy Cannon Matter Neutralizer Launcher Smartbomb Launcher Impact Weapon Makeshift Hammer Slashing Weapon Power Sword Piercing Weapon Spear Build | -11 -10 -10 -8 -6 -5 -5 -5 -5 -5 -5 -4 -4 -3 -2 -2 -1 ------- Run | Yrd Mat Sub Scr Fac Fac Was Fac Upp Upp War Pro Fac Res Res DSF Acc Slots Evolved 18 | . . . . 8 2 . . . . . . 2 2 2 . 2 Power 1 | . . . . . . . . . . . . 1 . . . . Propulsion 4 | . . . . 2 1 . . . . . . . 1 . . . Utility 11 | . . . . 6 1 . . . . . . 1 . 1 . 2 Weapon 2 | . . . . . . . . . . . . . 1 1 . . Parts Attached 85 | 4 . 1 2 18 6 . 3 3 . 2 . 2 6 8 6 24 Power 7 | . . . 1 . . . . . . 1 . . . 2 . 3 Engine 2 | . . . 1 . . . . . . 1 . . . . . . Core 1 | . . . . . . . . . . . . . . 1 . . Reactor 4 | . . . . . . . . . . . . . . 1 . 3 Propulsion 23 | 2 . . . 7 2 . 2 . . . . . 2 2 . 6 Treads 1 | 1 . . . . . . . . . . . . . . . . Leg . | . . . . . . . . . . . . . . . . . Wheel 1 | 1 . . . . . . . . . . . . . . . . Hover 2 | . . . . . . . . . . . . . . . . 2 Flight 19 | . . . . 7 2 . 2 . . . . . 2 2 . 4 Utility 38 | 1 . . 1 9 3 . . 1 . . . 2 2 3 3 13 Device 15 | 1 . . 1 2 2 . . 1 . . . . 1 1 1 5 Storage . | . . . . . . . . . . . . . . . . . Processor 12 | . . . . 3 1 . . . . . . . 1 . . 7 Hackware 7 | . . . . 3 . . . . . . . . . 2 2 . Protection 4 | . . . . 1 . . . . . . . 2 . . . 1 Artifact . | . . . . . . . . . . . . . . . . . Weapon 17 | 1 . 1 . 2 1 . 1 2 . 1 . . 2 1 3 2 Energy Gun 3 | 1 . 1 . . . . 1 . . . . . . . . . Energy Cannon 2 | . . . . . . . . . . . . . 1 1 . . Ballistic Gun . | . . . . . . . . . . . . . . . . . Ballistic Cannon . | . . . . . . . . . . . . . . . . . Launcher 2 | . . . . . 1 . . . . . . . . . . 1 Special Weapon . | . . . . . . . . . . . . . . . . . Impact Weapon 3 | . . . . 1 . . . 2 . . . . . . . . Slashing Weapon 4 | . . . . . . . . . . 1 . . . . 3 . Piercing Weapon 3 | . . . . 1 . . . . . . . . 1 . . 1 Special Melee Weapon . | . . . . . . . . . . . . . . . . . Unidentified Prototypes 5 | . . . . 1 . . 2 . . . . . . 1 . 1 Parts Lost 48 | . . . . . 1 . . 2 . . . . 20 . 3 22 Power 4 | . . . . . . . . . . . . . 1 . 1 2 Propulsion 15 | . . . . . . . . 1 . . . . 7 . . 7 Utility 26 | . . . . . 1 . . 1 . . . . 11 . 2 11 Weapon 3 | . . . . . . . . . . . . . 1 . . 2 Highest Loss Streak 15 | . . . . . 1 . . 1 . . . . 10 . 3 15 To Critical Strikes . | . . . . . . . . . . . . . . . . . Average Backups 5 | 6 4 5 7 4 4 3 4 4 5 4 5 4 4 4 4 3 Power . | 1 1 1 . . . . . . . . . . . . . . Propulsion 1 | 4 2 2 1 1 1 . 1 1 1 1 1 1 . . . . Utility 3 | . . . 4 3 3 3 3 3 4 3 3 2 2 2 2 2 Weapon . | 1 1 2 1 . . . . . . . 1 1 1 1 2 1 Tool/Special . | . . . . . . . . . . . . . . . . . Unused Backups 26 | 7 . . 11 3 1 . . . . 1 . . 1 . . 2 Power 2 | 1 . . 1 . . . . . . . . . . . . . Propulsion 6 | 4 . . 2 . . . . . . . . . . . . . Utility 14 | 1 . . 5 3 1 . . . . 1 . . 1 . . 2 Weapon 4 | 1 . . 3 . . . . . . . . . . . . . Tool/Special . | . . . . . . . . . . . . . . . . . Average Slot Usage (%) 78 | . 100 100 71 84 97 88 85 93 100 100 100 94 78 21 33 47 Engine 7 | . 14 14 14 6 5 5 5 5 5 5 5 5 3 . . . Treads 4 | . 14 14 14 . . . . . . . . . . . . . Wheel 4 | . 14 14 14 . . . . . . . . . . . . . Flight 15 | . . . . 20 28 29 29 29 29 29 29 26 25 4 8 10 Device 12 | . 14 14 14 13 8 11 8 14 17 17 17 15 9 3 2 5 Storage 4 | . 14 14 14 . . . . . . . . . . . . . Processor 10 | . . . . 9 22 23 23 23 23 23 23 21 9 . . 11 Hackware 7 | . . . . 17 16 11 11 11 11 11 11 10 8 9 15 9 Protection 1 | . . . . 5 2 5 5 . . . . 5 7 . . . Energy Gun 1 | . 28 28 . . . . . . . . . . . . . . Impact Weapon 4 | . . . . 3 4 . . 6 11 11 11 10 8 . . . Peak Build Rating 112 | 7 7 7 18 72 86 76 85 89 87 90 89 92 100 65 63 112 Average Rating 53 | 6 7 7 10 59 80 76 74 83 87 87 89 92 86 40 57 71 On Entrance 53 | 6 7 7 7 18 68 76 76 79 87 87 89 89 92 8 57 62 Naked Turns . | . . . . . . . . . . . . . . . . . Heaviest Build 37 | 13 13 13 13 15 19 9 9 14 14 18 18 26 37 22 22 29 Greatest Support 38 | 10 10 10 10 24 30 30 30 24 24 30 30 30 38 22 22 32 Greatest Overweight (x) 3 | 1 1 1 1 1 . . . . . . . . . . . 3 Average Overweight (x) . | 1 1 1 . . . . . . . . . . . . . . Largest Inventory Capacity 8 | 8 8 8 8 8 5 5 5 5 5 5 5 5 5 5 5 5 Average Capacity 6 | 8 8 8 8 5 5 5 5 5 5 5 5 5 5 5 5 5 Most Carried 8 | 6 5 6 8 8 5 3 5 5 5 5 5 5 5 5 5 5 Average Carried 5 | 5 4 5 7 4 4 3 4 4 5 4 4 4 4 4 4 4 Final Capacity 8 | 8 8 8 8 5 5 5 5 5 5 5 5 5 5 5 5 5 Final Carried 8 | 4 5 6 8 5 3 3 5 5 5 5 5 5 5 5 5 4 Class Distribution -------------------- 38% | Mutant 25% | Hacker-Ninja 24% | Hacker-Scout 5% | Hacker-Sprinter 3% | Hacker-Mutant Dominant Class ---------------- Mutant | -10/Materials Mutant | -10/Subcaves Mutant | -8/Scraptown Hacker-Scout | -6/Factory Hacker-Scout | -5/Factory Hacker-Scout | -5/Waste Hacker-Scout | -5/Factory Hacker-Ninja | -5/Upper Caves Hacker-Ninja | -5/Upper Caves Hacker-Ninja | -5/Warlord Hacker-Ninja | -4/Proximity Caves Hacker-Ninja | -4/Factory Hacker-Scout | -3/Research Hacker-Sprinter | -2/Research Hacker-Mutant | -2/DSF Hacker-Sprinter | -1/Access Resources | -11 -10 -10 -8 -6 -5 -5 -5 -5 -5 -5 -4 -4 -3 -2 -2 -1 ----------- Run | Yrd Mat Sub Scr Fac Fac Was Fac Upp Upp War Pro Fac Res Res DSF Acc Matter Collected 1151 | 240 . 6 14 200 40 . . 109 74 10 11 . 38 . . 409 Remotely . | . . . . . . . . . . . . . . . . . Salvage Created 1450 | 122 . 60 . 517 63 . . . 170 . . . 112 . . 406 Parts 55 | 3 . 1 . 20 6 . . . . . . . 5 . . 20 Haulers Intercepted 3 | . . . . 3 . . . . . . . . . . . . Recyclers Shooed 1 | . . . . . . . . . . . . . . . . 1 Parts Field Recycled . | . . . . . . . . . . . . . . . . . Retrieved Matter . | . . . . . . . . . . . . . . . . . Parts Self-Destructed 9 | . . 9 . . . . . . . . . . . . . . Prevented . | . . . . . . . . . . . . . . . . . Kills | -11 -10 -10 -8 -6 -5 -5 -5 -5 -5 -5 -4 -4 -3 -2 -2 -1 ------- Run | Yrd Mat Sub Scr Fac Fac Was Fac Upp Upp War Pro Fac Res Res DSF Acc Combat Hostiles Destroyed 11 | . . 1 . 1 4 . . . . . . . 2 . . 3 Melee 6 | . . . . 1 . . . . . . . . 2 . . 3 Guns 1 | . . 1 . . . . . . . . . . . . . . AOE 4 | . . . . . 4 . . . . . . . . . . . Classes Destroyed 9 | 2 . 1 . 4 1 . . . . . . . 1 . . . Tunneler 1 | 1 . . . . . . . . . . . . . . . . Hauler 3 | . . . . 3 . . . . . . . . . . . . Recycler 4 | 1 . . . 1 . . . . . . . . . . . 2 Operator 2 | . . . . 1 1 . . . . . . . . . . . Watcher 5 | . . . . 3 1 . . . . . . . . . . 1 Swarmer 6 | . . . . . 4 . . . . . . . . . . 2 Cutter 1 | . . . . 1 . . . . . . . . . . . . Programmer 3 | . . . . . . . . . . . . . 2 . . 1 Subdweller 1 | . . 1 . . . . . . . . . . . . . . Packrat 3 | . . . . . . . . . 3 . . . . . . . Best Kill Streak 5 | 2 . 1 . 5 4 . . . . . . . 1 . . 2 Combat Bots Only 4 | . . 1 . 1 4 . . . . . . . 1 . . 2 Max Kills in Single Turn 2 | 1 . 1 . 1 2 . . . 1 . . . 1 . . 1 Gunslinging . | . . . . . . . . . . . . . . . . . Exploded 2 | . . . . . 2 . . . . . . . . . . . Melee 1 | . . . . 1 . . . . . . . . 1 . . 1 Uniques/NPCs Destroyed . | . . . . . . . . . . . . . . . . . Combat | -11 -10 -10 -8 -6 -5 -5 -5 -5 -5 -5 -4 -4 -3 -2 -2 -1 -------- Run | Yrd Mat Sub Scr Fac Fac Was Fac Upp Upp War Pro Fac Res Res DSF Acc Hostile Shots Fired 484 | . . 7 . 22 26 . . 28 . . 8 . 109 2 42 240 Missed 225 | . . 4 . 13 13 . . 19 . . 3 . 57 1 26 89 Hits 259 | . . 3 . 9 13 . . 9 . . 5 . 52 1 16 151 Melee 1 | . . . . 1 . . . . . . . . . . . . Projectile 258 | . . 3 . 8 13 . . 9 . . 5 . 52 1 16 151 AOE 1 | . . . . 1 . . . . . . . . . . . . Critical Strikes 14 | . . . . 1 . . . . . . . . 6 . . 7 Actively Blocked 5 | . . . . . . . . . . . . . . . . 5 Part Disruptions 3 | . . . . . . . . . . . . . . . . 3 Damage Taken 6291 | . . 67 . 141 228 . . 156 . 14 96 . 1997 27 287 3278 Core 2536 | . . . . . 28 . . 60 . . . . 800 . 43 1605 Absorbed by Shields . | . . . . . . . . . . . . . . . . . Redirected to Shielding 80 | . . . . 40 13 . . 27 . . . . . . . . Regen/Repaired (Parts) 58 | . . . . 9 . . 17 . . 32 . . . . . . Core Remaining (%) 89 | 100 . . 100 100 . . . . . . 91 100 38 . 97 . Volleys Fired 36 | 12 . 5 . . 2 . . . . . . . 8 5 . 4 Largest 2 | 1 . 2 . . 1 . . . . . . . 1 1 . 1 Hottest 120 | 50 . 80 . . 46 . . . . . . . 105 120 . 46 Shots Fired 41 | 12 . 10 . . 2 . . . . . . . 8 5 . 4 Gun 22 | 12 . 10 . . . . . . . . . . . . . . Cannon 13 | . . . . . . . . . . . . . 8 5 . . Launcher 6 | . . . . . 2 . . . . . . . . . . 4 Special . | . . . . . . . . . . . . . . . . . Kinetic . | . . . . . . . . . . . . . . . . . Thermal 25 | 12 . . . . . . . . . . . . 8 5 . . Explosive 6 | . . . . . 2 . . . . . . . . . . 4 Electromagnetic 10 | . . 10 . . . . . . . . . . . . . . Robot Hit Streak 6 | 3 . 4 . . 6 . . . . . . . . . . . Robot Miss Streak 2 | 1 . 2 . . . . . . . . . . . . . . Penetration Max . | . . . . . . . . . . . . . . . . . Secondary Targets . | . . . . . . . . . . . . . . . . . Shots Hit Robots 70 | 9 . 6 . 20 5 . . . 3 . . . 11 . . 16 Core Hits 32 | 3 . 1 . 9 5 . . . . . . . 3 . . 11 Critical Kills . | . . . . . . . . . . . . . . . . . Critical Parts Destroyed 1 | . . . . 1 . . . . . . . . . . . . Critical Strikes 9 | 2 . . . 3 . . . . . . . . 1 . . 3 Burn 2 | 2 . . . . . . . . . . . . . . . . Smash 1 | . . . . 1 . . . . . . . . . . . . Sever 3 | . . . . . . . . . . . . . . . . 3 Impale 3 | . . . . 2 . . . . . . . . 1 . . . Melee Attacks 483 | . . . . 43 19 . . 3 5 56 2 2 319 1 . 33 Impact 277 | . . . . 9 4 . . 3 5 56 2 2 196 . . . Slashing 31 | . . . . . . . . . . . . . . . . 31 Piercing 175 | . . . . 34 15 . . . . . . . 123 1 . 2 Sneak Attacks 10 | . . . . 4 . . . . 3 . . . . . . 3 Combat Hostiles . | . . . . . . . . . . . . . . . . . Follow-up Attacks 15 | . . . . 5 . . . . . . . . 6 . . 4 Damage Inflicted 3427 | 113 . 65 . 840 610 . . . 340 . . . 471 . . 988 Guns 178 | 113 . 65 . . . . . . . . . . . . . . Cannons . | . . . . . . . . . . . . . . . . . Explosions 608 | . . . . . 460 . . . . . . . . . . 148 Melee 2631 | . . . . 840 150 . . . 340 . . . 471 . . 830 Ramming 10 | . . . . . . . . . . . . . . . . 10 Kinetic . | . . . . . . . . . . . . . . . . . Thermal 113 | 113 . . . . . . . . . . . . . . . . Explosive 608 | . . . . . 460 . . . . . . . . . . 148 Electromagnetic 65 | . . 65 . . . . . . . . . . . . . . Impact 752 | . . . . 193 . . . . 340 . . . 219 . . . Slashing 747 | . . . . . . . . . . . . . . . . 747 Piercing 1132 | . . . . 647 150 . . . . . . . 252 . . 83 Highest Corruption 28 | . . . . 1 . 5 5 5 5 5 . . 28 . . 11 Average Corruption 8 | . . . . 1 . 5 5 5 5 5 . . 16 . . 4 Corruption Purged . | . . . . . . . . . . . . . . . . . Corruption Blocked . | . . . . . . . . . . . . . . . . . Effects 68 | . . . . 1 . 1 6 3 4 . . . 32 . . 21 Message Errors 18 | . . . . . . . 2 1 . . . . 11 . . 4 Matter Fused 15 | . . . . . . . 1 1 1 . . . 5 . . 7 Heat Flow Errors 7 | . . . . . . 1 1 . . . . . 3 . . 2 Energy Discharges 12 | . . . . . . . 1 . 1 . . . 7 . . 3 Parts Rejected 2 | . . . . . . . . . . . . . . . . 2 Parts Fused 3 | . . . . 1 . . . . . . . . 2 . . . Data Loss (minor) 6 | . . . . . . . . . 2 . . . 2 . . 2 Data Loss (major) 3 | . . . . . . . 1 1 . . . . . . . 1 Misdirections 2 | . . . . . . . . . . . . . 2 . . . Overload Shots . | . . . . . . . . . . . . . . . . . Overflow Damage 483 | . . . . 56 58 . . . 229 . . . 71 . . 69 Projectiles . | . . . . . . . . . . . . . . . . . Explosions 58 | . . . . . 58 . . . . . . . . . . . Melee 425 | . . . . 56 . . . . 229 . . . 71 . . 69 Knockbacks 3 | . . . . 1 . . . . 2 . . . . . . . Impact 3 | . . . . 1 . . . . 2 . . . . . . . Kinetic . | . . . . . . . . . . . . . . . . . Secondary . | . . . . . . . . . . . . . . . . . Self-Inflicted Damage 3 | . . . . . . . . . . . . . . . . 3 Shots . | . . . . . . . . . . . . . . . . . Rammed 4 | . . . . . . . . . . . . . . . . 4 Targets Rammed 4 | . . . . . . . . . . . . . . . . 4 Kicked . | . . . . . . . . . . . . . . . . . Crushed . | . . . . . . . . . . . . . . . . . Highest Temperature 290 | 120 . 12 . 3 . . 290 . . . . . 260 192 . 261 Average Temperature 93 | 62 . 12 . 3 . . 132 . . . . . 87 87 . 124 Received Heat Transfer 249 | . . . . 21 9 . . . . . . . 84 9 . 126 Effects 1 | . . . . . . . 1 . . . . . . . . . Energy Bleed 1 | . . . . . . . 1 . . . . . . . . . Siege Activations . | . . . . . . . . . . . . . . . . . Martial Activations . | . . . . . . . . . . . . . . . . . Shielding Activations . | . . . . . . . . . . . . . . . . . Robots Disrupted . | . . . . . . . . . . . . . . . . . Combat Hostiles . | . . . . . . . . . . . . . . . . . Robots Corrupted 3 | . . . . 1 . . . . 2 . . . . . . . Combat Hostiles . | . . . . . . . . . . . . . . . . . Parts Fried 2 | . . . . 2 . . . . . . . . . . . . Impact Corruptions 13 | . . . . 2 . . . . 9 . . . 2 . . . Robots Melted . | . . . . . . . . . . . . . . . . . Combat Hostiles . | . . . . . . . . . . . . . . . . . Parts Melted 2 | 1 . 1 . . . . . . . . . . . . . . Heat Transferred 481 | 481 . . . . . . . . . . . . . . . . Parts Sabotaged . | . . . . . . . . . . . . . . . . . Parts Stolen . | . . . . . . . . . . . . . . . . . Parts Stripped . | . . . . . . . . . . . . . . . . . Power Chain Reactions . | . . . . . . . . . . . . . . . . . Alert | -11 -10 -10 -8 -6 -5 -5 -5 -5 -5 -5 -4 -4 -3 -2 -2 -1 ------- Run | Yrd Mat Sub Scr Fac Fac Was Fac Upp Upp War Pro Fac Res Res DSF Acc Maximum Alert Level 1 | . . . . . 1 . . . . . . . . . . 1 Low Security (%) 97 | 100 100 . . 100 96 100 100 . . . . 100 100 100 100 90 Level 1 2 | . . . . . 3 . . . . . . . . . . 9 Level 2 . | . . . . . . . . . . . . . . . . . Level 3 . | . . . . . . . . . . . . . . . . . Level 4 . | . . . . . . . . . . . . . . . . . Level 5 . | . . . . . . . . . . . . . . . . . High Security . | . . . . . . . . . . . . . . . . . Max Security . | . . . . . . . . . . . . . . . . . Peak Influence 300 | 5 5 . . 147 205 68 54 . . . . 41 139 44 15 300 Initial 68 | . . . . . 65 68 40 . . . . 34 10 44 . 8 Average 56 | 2 . . . 48 73 67 16 . . . . 31 33 14 4 109 Influence Increases 2540 | 10 5 . . 385 300 . 14 180 . . 105 17 429 17 15 1063 Destroy 0b10 Robot/C 240 | . . . . 20 80 . . . . . . . 40 . . 100 Destroy 0b10 Robot/NC 75 | 10 . . . 40 10 . . . . . . . . . . 15 Destroy Leader 66 | . . . . 12 12 . . . . . . . 10 . . 32 Allied During Kill 4 | . . . . . . . . . . . . . . . . 4 Successful Hack 158 | . 5 . . 66 27 . 14 . . . . . 29 2 . 15 Disable Machine 45 | . . . . . 15 . . . . . . . . . . 30 Destroy Structure 242 | . . . . 7 66 . . . . . . 2 50 15 . 102 Partial Spotted 150 | . . . . 30 30 . . . . . . 15 . . . 75 Lose Combat Pursuer 1560 | . . . . 210 60 . . 180 . . 105 . 300 . 15 690 Influence Decreases 2225 | 10 5 . . 252 238 137 72 60 120 . 50 51 371 96 . 763 Entered New Map 310 | . . . . . 68 127 18 . 23 . . 21 11 35 . 7 Time Decay 1340 | 10 5 . . 252 160 10 54 50 97 . 50 30 225 61 . 336 Lost Part 375 | . . . . . 10 . . 10 . . . . 135 . . 220 Lost Ally 200 | . . . . . . . . . . . . . . . . 200 Squads Dispatched 24 | . . . . 7 1 . . . . . 1 . 3 1 . 11 Investigation 11 | . . . . 4 1 . . . . . . . 1 1 . 4 Extermination 8 | . . . . 2 . . . . . . . . 2 . . 4 Reinforcement 4 | . . . . 1 . . . . . . . . . . . 3 Assault 1 | . . . . . . . . . . . 1 . . . . . Garrison . | . . . . . . . . . . . . . . . . . Intercept . | . . . . . . . . . . . . . . . . . Searches Triggered . | . . . . . . . . . . . . . . . . . Construction Impeded . | . . . . . . . . . . . . . . . . . Haulers Reinforced 1 | . . . . . . . . . . . . . . . . 1 Active Scanning Responses . | . . . . . . . . . . . . . . . . . Cargo Convoy Interrupts . | . . . . . . . . . . . . . . . . . Stealth | -11 -10 -10 -8 -6 -5 -5 -5 -5 -5 -5 -4 -4 -3 -2 -2 -1 --------- Run | Yrd Mat Sub Scr Fac Fac Was Fac Upp Upp War Pro Fac Res Res DSF Acc Distress Signals 7 | . . . . 2 . . . . . 2 . . 1 . . 2 Communications Jammed . | . . . . . . . . . . . . . . . . . Distress Signals . | . . . . . . . . . . . . . . . . . Times Spotted 183 | . . 1 . 26 22 6 . 10 . 6 10 . 39 1 2 60 Peak Tracking Total 17 | . . 1 . 7 8 6 . 10 . 4 7 . 16 . 2 17 Tactical Retreats 41 | . . . . 5 3 . . 5 . . 3 . 6 . 1 18 Traps | -11 -10 -10 -8 -6 -5 -5 -5 -5 -5 -5 -4 -4 -3 -2 -2 -1 ------- Run | Yrd Mat Sub Scr Fac Fac Was Fac Upp Upp War Pro Fac Res Res DSF Acc Traps Triggered 3 | . . . . . 2 . . . . . . . . 1 . . Indirectly . | . . . . . . . . . . . . . . . . . Trap Hack Attempts . | . . . . . . . . . . . . . . . . . Triggered . | . . . . . . . . . . . . . . . . . Disarmed . | . . . . . . . . . . . . . . . . . Reprogrammed . | . . . . . . . . . . . . . . . . . Reused . | . . . . . . . . . . . . . . . . . Traps Extracted . | . . . . . . . . . . . . . . . . . Installed . | . . . . . . . . . . . . . . . . . Triggered . | . . . . . . . . . . . . . . . . . Machines | -11 -10 -10 -8 -6 -5 -5 -5 -5 -5 -5 -4 -4 -3 -2 -2 -1 ---------- Run | Yrd Mat Sub Scr Fac Fac Was Fac Upp Upp War Pro Fac Res Res DSF Acc Machines Disabled 5 | . . . . . 1 . . 1 . 1 . . . . . 2 Max in Single Turn 1 | . . . . . 1 . . 1 . 1 . . . . . 1 Machines Repaired . | . . . . . . . . . . . . . . . . . Machines Dismantled . | . . . . . . . . . . . . . . . . . Machines Sabotaged . | . . . . . . . . . . . . . . . . . Overloaded Fab Kills . | . . . . . . . . . . . . . . . . . Hacking | -11 -10 -10 -8 -6 -5 -5 -5 -5 -5 -5 -4 -4 -3 -2 -2 -1 --------- Run | Yrd Mat Sub Scr Fac Fac Was Fac Upp Upp War Pro Fac Res Res DSF Acc Machines Accessed 52 | . 1 . 8 9 4 . 1 1 . 6 . 3 5 4 . 10 Terminals 22 | . 1 . . 5 3 . . . . . . 2 3 3 . 5 Fabricators 3 | . . . . . . . . . . . . . 1 1 . 1 Repair Stations 4 | . . . . 2 1 . 1 . . . . . . . . . Recycling Units 7 | . . . . 2 . . . . . . . 1 1 . . 3 Scanalyzers . | . . . . . . . . . . . . . . . . . Garrison Access 1 | . . . . . . . . . . . . . . . . 1 Total Hacks 171 | . 2 . 56 36 13 . 6 1 . 13 . 8 11 7 . 18 Successful 113 | . 1 . 56 16 6 . 3 1 . 13 . 1 3 2 . 11 Failed 58 | . 1 . . 20 7 . 3 . . . . 7 8 5 . 7 Catastrophic 13 | . . . . 3 3 . 1 . . . . 2 3 . . 1 Database Lockouts . | . . . . . . . . . . . . . . . . . Manual 13 | . . . . 7 3 . . . . . . . . . . 3 Terminals 57 | . 2 . . 21 7 . . . . . . 5 8 5 . 9 Fabricators 6 | . . . . . . . . . . . . . 1 2 . 3 Repair Stations 22 | . . . . 10 6 . 6 . . . . . . . . . Recycling Units 15 | . . . . 5 . . . . . . . 3 2 . . 5 Scanalyzers . | . . . . . . . . . . . . . . . . . Garrison Access 1 | . . . . . . . . . . . . . . . . 1 Terminal Hacks 93 | . 1 . 56 9 5 . . 1 . 13 . . 2 2 . 4 Record 72 | . . . 56 1 1 . . . . 11 . . 2 . . 1 Part Schematic 2 | . . . . 1 1 . . . . . . . . . . . Robot Schematic 2 | . . . . 2 . . . . . . . . . . . . Robot Analysis 1 | . . . . 1 . . . . . . . . . . . . Prototype ID Bank 1 | . . . . 1 . . . . . . . . . . . . Open Door 3 | . . . . . . . . 1 . 2 . . . . . . Open DSF 1 | . . . . . . . . . . . . . . 1 . . Level Access Points 1 | . . . . 1 . . . . . . . . . . . . Emergency Access Points 1 | . . . . . . . . . . . . . . . . 1 Terminal Index 1 | . . . . . 1 . . . . . . . . . . . Alert Level 2 | . . . . . 1 . . . . . . . . 1 . . Patrol Status 1 | . . . . 1 . . . . . . . . . . . . Hauler Manifests 1 | . . . . 1 . . . . . . . . . . . . Zone Layout 4 | . 1 . . . 1 . . . . . . . . . . 2 Fabricator Hacks 3 | . . . . . . . . . . . . . . . . 3 Network Status 1 | . . . . . . . . . . . . . . . . 1 Load Schematic 1 | . . . . . . . . . . . . . . . . 1 Build 1 | . . . . . . . . . . . . . . . . 1 Repair Station Hacks 8 | . . . . 4 1 . 3 . . . . . . . . . Scan Component 6 | . . . . 3 1 . 2 . . . . . . . . . Repair 2 | . . . . 1 . . 1 . . . . . . . . . Recycling Unit Hacks 6 | . . . . 2 . . . . . . . 1 1 . . 2 Report Inventory 5 | . . . . 2 . . . . . . . 1 1 . . 1 Retrieve Components 1 | . . . . . . . . . . . . . . . . 1 Scanalyzer . | . . . . . . . . . . . . . . . . . Garrison Access Hacks . | . . . . . . . . . . . . . . . . . Unauthorized Hacks 3 | . . . . 1 . . . . . . . . . . . 2 Terminals . | . . . . . . . . . . . . . . . . . Fabricators . | . . . . . . . . . . . . . . . . . Repair Stations . | . . . . . . . . . . . . . . . . . Recycling Units 3 | . . . . 1 . . . . . . . . . . . 2 Fedlink 1 | . . . . 1 . . . . . . . . . . . . Scrapoids 2 | . . . . . . . . . . . . . . . . 2 Scanalyzers . | . . . . . . . . . . . . . . . . . Garrison Access . | . . . . . . . . . . . . . . . . . Data Cores Recovered 2 | . . . . 1 1 . . . . . . . . . . . Used 2 | . . . . 1 1 . . . . . . . . . . . Hacking Detections 33 | . 1 . . 9 4 . 1 . . . . 3 4 3 . 8 Full Trace Events 7 | . . . . 3 1 . . . . . . . 1 . . 2 Feedback Events 1 | . . . . 1 . . . . . . . . . . . . Corruption 1 | . . . . 1 . . . . . . . . . . . . Feedback Blocked . | . . . . . . . . . . . . . . . . . Robot Schematics Acquired 2 | . . . . 2 . . . . . . . . . . . . Robots Built . | . . . . . . . . . . . . . . . . . Authchips . | . . . . . . . . . . . . . . . . . Time . | . . . . . . . . . . . . . . . . . Total Robot Build Rating . | . . . . . . . . . . . . . . . . . Part Schematics Acquired 2 | . . . . 1 1 . . . . . . . . . . . Parts Built 2 | . . . . . . . . . . . . . . . . 2 Authchips . | . . . . . . . . . . . . . . . . . Time 53 | . . . . . . . . . . . . . . . . 53 Total Part Build Rating 12 | . . . . . . . . . . . . . . . . 12 Parts Repaired 2 | . . . . 1 . . 1 . . . . . . . . . Time 103 | . . . . 35 . . 68 . . . . . . . . . Parts Recycled . | . . . . . . . . . . . . . . . . . Recycled Matter . | . . . . . . . . . . . . . . . . . Retrieved Matter . | . . . . . . . . . . . . . . . . . Retrieved Components 1 | . . . . . . . . . . . . . . . . 1 Parts Scanalyzed . | . . . . . . . . . . . . . . . . . Part Schematics Acquired . | . . . . . . . . . . . . . . . . . Parts Damaged . | . . . . . . . . . . . . . . . . . Bothacking | -11 -10 -10 -8 -6 -5 -5 -5 -5 -5 -5 -4 -4 -3 -2 -2 -1 ------------ Run | Yrd Mat Sub Scr Fac Fac Was Fac Upp Upp War Pro Fac Res Res DSF Acc Used RIF Installer . | . . . . . . . . . . . . . . . . . Robots Hacked . | . . . . . . . . . . . . . . . . . Non-combat . | . . . . . . . . . . . . . . . . . Combat . | . . . . . . . . . . . . . . . . . Robot Hacks Applied . | . . . . . . . . . . . . . . . . . Relay Couplers Released . | . . . . . . . . . . . . . . . . . Fabnet Peak Effective % . | . . . . . . . . . . . . . . . . . Robots Rewired . | . . . . . . . . . . . . . . . . . Allies Hacked . | . . . . . . . . . . . . . . . . . Hacks Repelled . | . . . . . . . . . . . . . . . . . Allies | -11 -10 -10 -8 -6 -5 -5 -5 -5 -5 -5 -4 -4 -3 -2 -2 -1 -------- Run | Yrd Mat Sub Scr Fac Fac Was Fac Upp Upp War Pro Fac Res Res DSF Acc Total Allies 10 | . . . . . . . . . . . . . . . . 10 Largest Group 5 | . . . . . . . . . . . . . . . . 5 Highest-Rated Group 320 | . . . . . . . . . . . . . . . . 320 Highest-Rated Ally 67 | . . . . . . . . . . . . . . . . 67 Total Orders 1 | . . . . . . . . . . . . . . . . 1 EXPLORE 1 | . . . . . . . . . . . . . . . . 1 Ally Attacks 45 | . . . . . . . . . . . . . . . . 45 Total Damage 1961 | . . . . . . . . . . . . . . . . 1961 Kills 3 | . . . . . . . . . . . . . . . . 3 Allies Corrupted . | . . . . . . . . . . . . . . . . . Allies Melted 3 | . . . . . . . . . . 3 . . . . . . Intel | -11 -10 -10 -8 -6 -5 -5 -5 -5 -5 -5 -4 -4 -3 -2 -2 -1 ------- Run | Yrd Mat Sub Scr Fac Fac Was Fac Upp Upp War Pro Fac Res Res DSF Acc Active Infowar (turns) 6897 | 13 57 214 2450 662 330 21 190 129 212 1210 311 63 764 . . 271 Optics 2802 | . . . . . 319 21 190 129 212 1210 311 63 76 . . 271 Sensors 3451 | . . . . 619 330 21 190 129 212 1210 311 63 110 . . 256 IFF 88 | . . . . 88 . . . . . . . . . . . . Terrain 4055 | . . . 404 633 186 21 122 129 212 1210 311 63 764 . . . Seismic 2330 | 13 57 214 2046 . . . . . . . . . . . . . Cloaking 5 | . . . . . . . . 2 . . . 3 . . . . Robot Analysis Total 1 | . . . . 1 . . . . . . . . . . . . Derelict Logs Recovered 7 | . . 1 1 . . . . 2 1 . 2 . . . . . Drone Launches 2 | . . . . . . . . . . . . . . . . 2 Drone Recoveries . | . . . . . . . . . . . . . . . . . Exploration | -11 -10 -10 -8 -6 -5 -5 -5 -5 -5 -5 -4 -4 -3 -2 -2 -1 ------------- Run | Yrd Mat Sub Scr Fac Fac Was Fac Upp Upp War Pro Fac Res Res DSF Acc Turns Passed 7848 | 47 57 214 2450 662 330 21 190 129 212 1210 311 63 866 182 51 853 Spaces Moved 11277 | 17 59 165 2646 1301 639 77 353 410 398 1789 361 196 740 344 103 1679 Core 324 | . . . . . . . . . . . . . 18 63 . 243 Treads . | . . . . . . . . . . . . . . . . . Legs . | . . . . . . . . . . . . . . . . . Wheels 2891 | 17 59 165 2646 4 . . . . . . . . . . . . Hover . | . . . . . . . . . . . . . . . . . Flight 8062 | . . . . 1297 639 77 353 410 398 1789 361 196 722 281 103 1436 Fastest Speed 23 | 95 95 95 80 28 27 27 27 28 31 27 27 27 25 32 32 23 Average Speed 47 | 95 95 95 91 31 31 27 27 28 31 29 27 27 29 35 34 37 Slowest Speed 280 | 95 95 95 95 112 34 27 28 31 31 31 27 27 50 50 40 280 Overloaded Moves 892 | . . . . . . . 183 303 . . . . . . . 406 Propulsion Burnouts 2 | . . . . . . . . 1 . . . . . . . 1 Robots Hopped 52 | . . . . 21 8 . . . . . . . 11 1 . 11 Potential Cave-ins 11 | . . . . . . . . . . 1 . . 8 . . 2 Cave-ins Triggered 2 | . . . . . . . . . . . . . 2 . . . Exploration Rate (%) 41 | 2 14 17 95 35 16 82 6 78 62 95 58 7 22 6 74 43 Regions Visited 16 Branch Regions 6 Pre-discovered Areas 9 | . . 1 6 . . . . 1 . . 1 . . . . . Known Exits Taken 9 | . . . . 1 . . 1 1 1 1 1 1 1 1 . . Unknown Exits Taken 4 | 1 1 1 1 . . . . . . . . . . . . . Scrap Searched 10 | . . . 6 . . . . 2 1 . 1 . . . . . Spaces Dug 102 | . . . . 7 10 . . 1 1 3 2 1 35 6 . 36 Terrain Destroyed 158 | . . . . 7 44 . . 1 1 3 2 1 35 6 . 58 Melee 59 | . . . . 7 10 . . 1 1 3 2 1 27 1 . 6 Projectile 13 | . . . . . . . . . . . . . 8 5 . . AOE 86 | . . . . . 34 . . . . . . . . . . 52 Terrain Rammed . | . . . . . . . . . . . . . . . . . Walls Destroyed . | . . . . . . . . . . . . . . . . . Machines Disabled . | . . . . . . . . . . . . . . . . . Actions | -11 -10 -10 -8 -6 -5 -5 -5 -5 -5 -5 -4 -4 -3 -2 -2 -1 --------- Run | Yrd Mat Sub Scr Fac Fac Was Fac Upp Upp War Pro Fac Res Res DSF Acc Total 13183 | 34 59 211 2682 1477 735 76 443 416 481 2418 572 203 1015 394 115 1852 Wait 1316 | . . 40 . 125 53 . 85 . 80 575 208 5 18 26 6 95 Move 11160 | 16 58 164 2645 1260 623 76 352 409 397 1788 360 195 716 341 102 1658 Hop 49 | . . . . 19 8 . . . . . . . 11 1 . 10 Pick Up 48 | . 1 1 16 9 3 . 1 1 . 3 1 . 5 4 . 3 Fast Attach 52 | 1 . . . 8 2 . 2 3 . . . . 4 4 5 23 Attach 29 | . . . . 5 3 . . 1 . . . 1 4 5 1 9 Detach 17 | . . . 2 . . . . . . . . . 1 3 1 10 Swap 33 | 3 . 1 2 7 5 . 2 . . 3 . 1 6 2 . 1 Drop 57 | 2 . . 17 10 6 . 1 . . 4 1 . 6 2 . 8 Fire 36 | 12 . 5 . . 2 . . . . . . . 8 5 . 4 Melee 366 | . . . . 34 15 . . 2 4 45 2 1 235 1 . 27 Ram 4 | . . . . . . . . . . . . . . . . 4 Kick . | . . . . . . . . . . . . . . . . . Crush . | . . . . . . . . . . . . . . . . . Escape Stasis 16 | . . . . . 15 . . . . . . . 1 . . . Rewire . | . . . . . . . . . . . . . . . . . Trap . | . . . . . . . . . . . . . . . . . Miscellaneous . | . . . . . . . . . . . . . . . . . Route ------- -11/Scrapyard -10/Materials (discovered 2 exits: [*Min] / [*Sub]) -10/Subcaves -8/Scraptown (discovered 2 exits: *Fac x2) -6/Factory (discovered 6 exits: *Fac x4 / *Low x2) -5/Factory (discovered 3 exits: Upp x2 / [Ext]) -5/Waste -5/Factory -5/Upper Caves -5/Upper Caves (discovered 2 exits: Fac / *War) -5/Warlord -4/Proximity Caves -4/Factory (discovered 2 exits: *Res / Upp) -3/Research (discovered 3 exits: *Res x2 / Qua) -2/Research (discovered 3 exits: Tes x2 / DSF) -2/DSF -1/Access History --------- Turn | Location | Event 30 | -11/Scrapyard | Discovered new exit (range 3) 48 | -11/Scrapyard | Entered Materials 49 | -10/Materials | Met a group of wandering Federalists 79 | -10/Materials | Discovered new exit (range 17) 103 | -10/Materials | Discovered new exit (range 3) 105 | -10/Materials | Entered Subcaves 105 | -10/Subcaves | Accompanied by 2 allies 106 | -10/Subcaves | Continued accompanying wandering Federalists (3) 122 | -10/Subcaves | Learned location of Storage (-8) 302 | -10/Subcaves | Build established: Mutant 315 | -10/Subcaves | Wandering Federalist uncovered a shortcut to Scraptown 319 | -10/Subcaves | Entered Scraptown 629 | -8/Scraptown | Discovered new exit (range 7) 876 | -8/Scraptown | Visited The Evicted 910 | -8/Scraptown | Visited Bundlers 993 | -8/Scraptown | Visited Red Mages 1032 | -8/Scraptown | Visited Awakened 1173 | -8/Scraptown | Scanned Subdweller tech in exchange for log data 1176 | -8/Scraptown | Learned location of Quarantine (-3) 1224 | -8/Scraptown | Visited Comm Corps 1470 | -8/Scraptown | Visited TADAMA 1498 | -8/Scraptown | Visited UFD Registry 1513 | -8/Scraptown | Visited Cyclists 1549 | -8/Scraptown | Registered with UFD as "Plasmathruster" 1579 | -8/Scraptown | Entered Cyclist Reading Room 1583 | -8/Scraptown | Learned location of Zion (-7) 1630 | -8/Scraptown | Visited Scrapoid Pod Storage 1649 | -8/Scraptown | Visited Abandonware Association 1665 | -8/Scraptown | Learned abandonware demo "KABOOM.EXE" 1665 | -8/Scraptown | Learned abandonware demo "MELTYB.EXE" 1693 | -8/Scraptown | Visited Supply Room 1868 | -8/Scraptown | Visited Chapter 10 1913 | -8/Scraptown | Visited Scrap Suit Storage 1972 | -8/Scraptown | Visited Infowarlord's Domain 1979 | -8/Scraptown | Found Exp. Terrain Scanner 2020 | -8/Scraptown | Discovered new exit (range 5) 2117 | -8/Scraptown | Visited Scrapoid Research Area 2145 | -8/Scraptown | Visited Research Penetration Think Tank 2232 | -8/Scraptown | Visited Cartography Club 2287 | -8/Scraptown | Found Surveybot 17 Chip 2590 | -8/Scraptown | Learned location of Archives (-5) 2590 | -8/Scraptown | Learned location of Armory (-4) 2590 | -8/Scraptown | Learned 12 Materials zone layouts 2590 | -8/Scraptown | Learned 8 Research zone layouts 2590 | -8/Scraptown | Learned 8 Upper Caves zone layouts 2590 | -8/Scraptown | Learned 24 Upper Caves zone layouts 2590 | -8/Scraptown | Learned 20 Proximity Caves zone layouts 2590 | -8/Scraptown | Learned 24 Proximity Caves zone layouts 2590 | -8/Scraptown | Learned 4 Armory zone layouts 2590 | -8/Scraptown | Learned location of 1 exit from Research 2590 | -8/Scraptown | Learned location of 1 exit from Upper Caves 2590 | -8/Scraptown | Learned location of 2 exits from Upper Caves 2685 | -8/Scraptown | Met Optimus 2685 | -8/Scraptown | Accepted into 0bPrime 2769 | -8/Scraptown | Entered Factory 2769 | -6/Factory | Evolved 8 slots: Propulsion x2, Utility x6 2770 | -6/Factory | Identified exit to Lower Caves 2793 | -6/Factory | Discovered exit to Lower Caves (range 26) 2802 | -6/Factory | Loaded intel: 8 recycling unit locations 2893 | -6/Factory | Repaired Broken Adv. Sensor Array 3004 | -6/Factory | Identified exit to Factory 3072 | -6/Factory | Found Prototype Processor 3192 | -6/Factory | Build established: Hacker-Scout 3431 | -6/Factory | Entered another Factory area 3431 | -5/Factory | Evolved 2 slots: Propulsion x1, Utility x1 3432 | -5/Factory | Identified exit to Upper Caves 3664 | -5/Factory | Discovered new exit (range 20) 3761 | -5/Factory | Manually triggered Chute Trap 3761 | -5/Factory | Sucked down chute 3761 | -5/Factory | Entered Waste 3765 | -5/Waste | Spotted C-40 Crusher 3766 | -5/Waste | Spotted C-40 Crusher 3767 | -5/Waste | Spotted C-40 Crusher 3771 | -5/Waste | Spotted C-40 Crusher 3771 | -5/Waste | Spotted C-40 Crusher 3772 | -5/Waste | Spotted C-40 Crusher 3776 | -5/Waste | Discovered new exit (range 18) 3776 | -5/Waste | EMP discharged 3782 | -5/Waste | Identified exit to Factory 3782 | -5/Waste | Entered Factory 3867 | -5/Factory | Repaired Broken Exp. Terrain Scanner 3972 | -5/Factory | Entered Upper Caves 3973 | -5/Upper Caves | Identified exit to Upper Caves 4005 | -5/Upper Caves | Attracted the attention of an 0b10 outpost 4052 | -5/Upper Caves | Learned location of 1 exit from Factory 4053 | -5/Upper Caves | Entered a destroyed Warlord outpost 4101 | -5/Upper Caves | Entered another Upper Caves area 4102 | -5/Upper Caves | Identified exit to Factory 4102 | -5/Upper Caves | Identified exit to Warlord 4313 | -5/Upper Caves | Entered Warlord 4315 | -5/Warlord | Build established: Hacker-Ninja 4330 | -5/Warlord | Discovered new exit (range 9) 4349 | -5/Warlord | System corruption cleaned by Quarantine Array 4400 | -5/Warlord | Opened side exit 4654 | -5/Warlord | Warlord's base attacked by MAIN.C 4680 | -5/Warlord | Rebuked by Warlord 5004 | -5/Warlord | Warlord forces counterattacked 5143 | -5/Warlord | Identified exit to Proximity Caves 5232 | -5/Warlord | Spotted Striker 5244 | -5/Warlord | Lost 23 allies 5329 | -5/Warlord | Warlord base infiltrated, sounded retreat 5417 | -5/Warlord | Spotted Executioner 5480 | -5/Warlord | Found Signal Generator 5523 | -5/Warlord | Entered Proximity Caves 5714 | -4/Proximity Caves | Attracted the attention of an 0b10 outpost 5774 | -4/Proximity Caves | Learned location of Testing (-2) 5834 | -4/Proximity Caves | Entered Factory 5834 | -4/Factory | Evolved 2 slots: Power x1, Utility x1 5835 | -4/Factory | Identified exit to Upper Caves 5885 | -4/Factory | Discovered new exit (range 30) 5896 | -4/Factory | Identified exit to Research 5897 | -4/Factory | Entered Research 5897 | -3/Research | Evolved 2 slots: Propulsion x1, Weapon x1 5898 | -3/Research | Identified exit to Quarantine 5899 | -3/Research | Identified exit to Research 5973 | -3/Research | Crushed by falling debris 5973 | -3/Research | System corruption reached 10% 6004 | -3/Research | Lost 4 parts (1n3u) 6356 | -3/Research | Build established: Hacker-Scout 6648 | -3/Research | Crushed by falling debris 6679 | -3/Research | Lost 5 parts (1p1n3u) 6756 | -3/Research | Discovered exit to Research (range 15) 6761 | -3/Research | Core integrity fell below 50% 6763 | -3/Research | Entered another Research area 6763 | -2/Research | Evolved 2 slots: Utility x1, Weapon x1 6764 | -2/Research | Identified exit to Testing 6783 | -2/Research | Identified exit to DSF 6789 | -2/Research | Lost 10 parts (5n4u1w) 6945 | -2/Research | Entered DSF 6963 | -2/DSF | Discovered new exit (range 15) 6966 | -2/DSF | Additional patrols routed to DSF 6992 | -2/DSF | Lost 3 parts (1p2u) 6996 | -2/DSF | Entered Access 6996 | -1/Access | Evolved 2 slots: Utility x2 7066 | -1/Access | Fabricated Mic. Fission Core? 7105 | -1/Access | Spotted B-99 Colossus 7242 | -1/Access | Lost 4 parts (1n2u1w) 7358 | -1/Access | Scrapoids reinforcements arrived? 7660 | -1/Access | Scrapoids reinforcements arrived? 7663 | -1/Access | Spotted B-99 Colossus 7671 | -1/Access | Core integrity fell below 50% 7767 | -1/Access | Core integrity fell below 20% 7769 | -1/Access | System corruption reached 10% 7789 | -1/Access | Lost 15 parts (1p4n9u1w) 7849 | -1/Access | Destroyed by S-43 Plague with Heavy Machine Gun Last Messages --------------- rejected. 07758_ Core Analyzer destroyed. 07758_ Acquired Enh. Force Lance. 07766_ Penetrated by Slug. 07769_ Acquired Antigrav Array. 07771_ &AA8PQCLG2HOUNNG, IIPLVH6RJT WN,NKQSK 07794_ Drone sends a signal. 07798_ Penetrated by Slug. 07802_ ALERT: Potential suspicious activity detected, Programmers report to Access Zone 8C. 07802_ Penetrated by Slug. 07802_ Antigrav Array destroyed. 07807_ Slug penetrates Wall. 07810_ System corrupted: Energy discharge (-24). 07810_ Slug penetrates Wall. 07833_ System corrupted: Matter fused (-7). 07836_ Slammed into M-36 Artificer. 07848_ System corrupted: Substantial component data lost. Map ----- +----------------------------------------------------+ | ????????????????????????# | | ????????????????????????# | | ????????????????????????# | | ????????????????????????# | | ????????????????????????# | | ????##############??????# #####+########## | | ????# #??????# # #?# | | ????# ######## # #?# | | ????# # # #?# | | ????# " # # ""#?# | | ?????""" # # " ""#?# | | ??????""" + + """ ""#?# | | ????# " # # """ T#?# | | ????# # # " ""#?# | | ????# # # ""#?### | | ????# # u ######## ""#???? | | ????# # #??????# #???? | | ????# # #??????# #???? | | ????############## #####################???? | | ?????????######??# # #??????????? | | ????????? ??# # #??????????? | | ?????????? ?# # ]! ] ############ | | ????????""S""" ?# # ]! su/ | | ????# """ """ # # ! #### ## | | ????# #^ k# #??# #? | | ????# + @ #??# #? | | ????# # # ! #??# #? | | ????# # # #### #? | | ????# ?# # s #? | | ????# ?# # ##### #? | | ????# ??# # k #???# #? | | ????# ??# ################## #? | | ????##########???# ## | | ?????????????????# # | | ?????????????????# # | | ?????????????????# ######### == # | | ?????????????????# # ?# = ^# | | ?????????????????# # ?# ^# | | ?????????????????# # # # | | ?????????????????# # # ### | | ?????????????????# # + #?? | | ??????????##?????# # # #?? | | ??????????# ?????# # ## ### | | ??????????# ????# # ??# | | ?????????##==????# # ??# | | ?????????? ===???# # ???# | | ??????????#== ???# ^ # ???# ### | | ??????????# ??# ^ ##########+### ### | | ??????????# ??# #?? + #?# | | ??????????# ?# #? ###+#?# | +----------------------------------------------------+ Best States ------------- Heat Dissipation 52 Energy Generation 25 Energy Capacity 350 Matter Stores 300 Matter Capacity 300 Sight Range 22 Robot Scan Range 16 Terrain Scan Range 30 Terrain Scan Density 1210 Armor Coverage 375 Propulsion Shielding 66 Melee Speed Boost 20 Phase Shifting 10 Evasion (%) 74 Melee Accuracy 14 Target Analysis 8 Core Analysis 9 Recoil Reduction 1 Offensive Hacking 50 Defensive Hacking 20 Item Schematics ----------------- Adv. Sensor Array | -6/Factory | Hacked Mic. Fission Core | -5/Factory | Hacked Robot Schematics ------------------ S-27 Virus | -6/Factory | Hacked L-41 Fighter | -6/Factory | Hacked Fabricated ------------ Mic. Fission Core | x2 | -1/Access Repaired ---------- Adv. Sensor Array | 62% | -6/Factory | Broken Exp. Terrain Scanner | 41% | -5/Factory | Broken Alien Tech Used ----------------- None Achievements -------------- A Powerful Ally? Challenges ------------ None Game ------ Seed OvertunedQuantumProtomatter Manual? 0 Play Time 03:15:20 Cumulative 68.5 hours Start 2025.10.12 @ 02:05:17 End 2025.10.12 @ 09:38:26 Sessions 5 Manual Loads 0 Difficulty Rogue Special Mode None Game No. 83 Rogue 53 Adventurer 30 Explorer 0 Win Type - Total 0 Types 0/0/0/0/0/0/0/0/0/0 Lore% 36 Gallery% 37 Achievement% 32 Wizard Run 0 Options --------- Layout 1 ASCII 0 Keyboard 1 Movement Arrows Keybinds 0 Fullscreen 1 Font 24/Terminus Map View 50x35 Zoom Use 0% Tactical HUD 1 Map Filters NONE Filters NONE Steam 1 RUN: 668475b9-d84f-4187-af73-aab515c330c4